Workbook

Sheet Introducere date
J1: =365*2 -> 730
B2: LUNAR INTRODUCERE DATE
L3: TOTALURI | O3: PROGNOZĂ
B5: DATĂ | C5: FIRMĂ | D5: SUMĂ | E5: PLANIFICATE | F5: COSTURI | G5: VENITURI | H5: LUNĂ | I5: TRIMESTRU | J5: AN | K5: NUM LUNAR (ASCUNDERE) | L5: LUNĂ | M5: TRIMESTRU | N5: ANUAL | O5: LUNĂ | P5: TRIMESTRU | Q5: AN
B6: =40657+(365*2) -> 2013-04-23 | C6: A. Datum Corporation | D6: 6,400.00 lei | E6: 6,200.00 lei | F6: 4,450.00 lei | G6: =tblDate[[#This Row],[SUMĂ]]-tblDate[[#This Row],[COSTURI]] -> 1,950.00 lei | H6: =DATE(YEAR('Introducere date'!$B6),MONTH('Introducere date'!$B6),1) -> 2013-04-01 | I6: =LOOKUP(MONTH('Introducere date'!$H6),{1,1;2,1;3,1;4,2;5,2;6,2;7,3;8,3;9,3;10,4;11,4;12,4}) -> Trimestru 2 | J6: =YEAR('Introducere date'!$B6) -> 2013 | K6: =MONTH(tblDate[[#This Row],[DATĂ]]) -> 4 | L6: =SUMIFS(tblDate[SUMĂ],tblDate[DATĂ],">="&EOMONTH(tblDate[[#This Row],[DATĂ]],-1)+1,tblDate[DATĂ],"<="&EOMONTH(tblDate[[#This Row],[DATĂ]],0)) -> 14,600.00 lei | M6: =SUMIFS(tblDate[SUMĂ],tblDate[DATĂ],">="&DATE(YEAR(tblDate[[#This Row],[DATĂ]]),1,1),tblDate[DATĂ],"<="&DATE(YEAR(tblDate[[#This Row],[DATĂ]]),12,31),tblDate[TRIMESTRU],tblDate[[#This Row],[TRIMESTRU]]) -> 50,800.00 lei | N6: =SUMIFS(tblDate[SUMĂ],tblDate[DATĂ],">="&DATE(YEAR(tblDate[[#This Row],[DATĂ]]),1,1),tblDate[DATĂ],"<="&DATE(YEAR(tblDate[[#This Row],[DATĂ]]),12,31)) -> 143,800.00 lei | O6: =IFERROR(TREND($L$6:INDEX($L:$L,ROW(),1),$K$6:INDEX($K:$K,ROW(),1),IF(MONTH(tblDate[[#This Row],[DATĂ]])=12,13,MONTH(tblDate[[#This Row],[DATĂ]])+1)),"") -> 14,600.00 lei | P6: =IFERROR(TREND($M$6:INDEX($M:$M,ROW(),1),$I$6:INDEX($I:$I,ROW(),1),IF(tblDate[[#This Row],[TRIMESTRU]]=4,5,tblDate[[#This Row],[TRIMESTRU]]+1)),"") -> 50,800.00 lei | Q6: =IFERROR(TREND($N$6:INDEX($N:$N,ROW(),1),$J$6:INDEX($J:$J,ROW(),1),tblDate[[#This Row],[AN]]+1),"") -> 143,800.00 lei
B7: =40659+(365*2) -> 2013-04-25 | C7: Contoso Pharmaceuticals | D7: 8,200.00 lei | E7: 8,000.00 lei | F7: 6,400.00 lei | G7: =tblDate[[#This Row],[SUMĂ]]-tblDate[[#This Row],[COSTURI]] -> 1,800.00 lei | H7: =DATE(YEAR('Introducere date'!$B7),MONTH('Introducere date'!$B7),1) -> 2013-04-01 | I7: =LOOKUP(MONTH('Introducere date'!$H7),{1,1;2,1;3,1;4,2;5,2;6,2;7,3;8,3;9,3;10,4;11,4;12,4}) -> Trimestru 2 | J7: =YEAR('Introducere date'!$B7) -> 2013 | K7: =MONTH(tblDate[[#This Row],[DATĂ]]) -> 4 | L7: =SUMIFS(tblDate[SUMĂ],tblDate[DATĂ],">="&EOMONTH(tblDate[[#This Row],[DATĂ]],-1)+1,tblDate[DATĂ],"<="&EOMONTH(tblDate[[#This Row],[DATĂ]],0)) -> 14,600.00 lei | M7: =SUMIFS(tblDate[SUMĂ],tblDate[DATĂ],">="&DATE(YEAR(tblDate[[#This Row],[DATĂ]]),1,1),tblDate[DATĂ],"<="&DATE(YEAR(tblDate[[#This Row],[DATĂ]]),12,31),tblDate[TRIMESTRU],tblDate[[#This Row],[TRIMESTRU]]) -> 50,800.00 lei | N7: =SUMIFS(tblDate[SUMĂ],tblDate[DATĂ],">="&DATE(YEAR(tblDate[[#This Row],[DATĂ]]),1,1),tblDate[DATĂ],"<="&DATE(YEAR(tblDate[[#This Row],[DATĂ]]),12,31)) -> 143,800.00 lei | O7: =IFERROR(TREND($L$6:INDEX($L:$L,ROW(),1),$K$6:INDEX($K:$K,ROW(),1),IF(MONTH(tblDate[[#This Row],[DATĂ]])=12,13,MONTH(tblDate[[#This Row],[DATĂ]])+1)),"") -> 14,600.00 lei | P7: =IFERROR(TREND($M$6:INDEX($M:$M,ROW(),1),$I$6:INDEX($I:$I,ROW(),1),IF(tblDate[[#This Row],[TRIMESTRU]]=4,5,tblDate[[#This Row],[TRIMESTRU]]+1)),"") -> 50,800.00 lei | Q7: =IFERROR(TREND($N$6:INDEX($N:$N,ROW(),1),$J$6:INDEX($J:$J,ROW(),1),tblDate[[#This Row],[AN]]+1),"") -> 143,800.00 lei
B8: =40671+(365*2) -> 2013-05-07 | C8: Consolidated Messenger | D8: 4,400.00 lei | E8: 4,200.00 lei | F8: 2,600.00 lei | G8: =tblDate[[#This Row],[SUMĂ]]-tblDate[[#This Row],[COSTURI]] -> 1,800.00 lei | H8: =DATE(YEAR('Introducere date'!$B8),MONTH('Introducere date'!$B8),1) -> 2013-05-01 | I8: =LOOKUP(MONTH('Introducere date'!$H8),{1,1;2,1;3,1;4,2;5,2;6,2;7,3;8,3;9,3;10,4;11,4;12,4}) -> Trimestru 2 | J8: =YEAR('Introducere date'!$B8) -> 2013 | K8: =MONTH(tblDate[[#This Row],[DATĂ]]) -> 5 | L8: =SUMIFS(tblDate[SUMĂ],tblDate[DATĂ],">="&EOMONTH(tblDate[[#This Row],[DATĂ]],-1)+1,tblDate[DATĂ],"<="&EOMONTH(tblDate[[#This Row],[DATĂ]],0)) -> 21,800.00 lei | M8: =SUMIFS(tblDate[SUMĂ],tblDate[DATĂ],">="&DATE(YEAR(tblDate[[#This Row],[DATĂ]]),1,1),tblDate[DATĂ],"<="&DATE(YEAR(tblDate[[#This Row],[DATĂ]]),12,31),tblDate[TRIMESTRU],tblDate[[#This Row],[TRIMESTRU]]) -> 50,800.00 lei | N8: =SUMIFS(tblDate[SUMĂ],tblDate[DATĂ],">="&DATE(YEAR(tblDate[[#This Row],[DATĂ]]),1,1),tblDate[DATĂ],"<="&DATE(YEAR(tblDate[[#This Row],[DATĂ]]),12,31)) -> 143,800.00 lei | O8: =IFERROR(TREND($L$6:INDEX($L:$L,ROW(),1),$K$6:INDEX($K:$K,ROW(),1),IF(MONTH(tblDate[[#This Row],[DATĂ]])=12,13,MONTH(tblDate[[#This Row],[DATĂ]])+1)),"") -> 29,000.00 lei | P8: =IFERROR(TREND($M$6:INDEX($M:$M,ROW(),1),$I$6:INDEX($I:$I,ROW(),1),IF(tblDate[[#This Row],[TRIMESTRU]]=4,5,tblDate[[#This Row],[TRIMESTRU]]+1)),"") -> 50,800.00 lei | Q8: =IFERROR(TREND($N$6:INDEX($N:$N,ROW(),1),$J$6:INDEX($J:$J,ROW(),1),tblDate[[#This Row],[AN]]+1),"") -> 143,800.00 lei
B9: =40678+(365*2) -> 2013-05-14 | C9: Proseware, Inc. | D9: 5,400.00 lei | E9: 5,500.00 lei | F9: 4,500.00 lei | G9: =tblDate[[#This Row],[SUMĂ]]-tblDate[[#This Row],[COSTURI]] -> 900.00 lei | H9: =DATE(YEAR('Introducere date'!$B9),MONTH('Introducere date'!$B9),1) -> 2013-05-01 | I9: =LOOKUP(MONTH('Introducere date'!$H9),{1,1;2,1;3,1;4,2;5,2;6,2;7,3;8,3;9,3;10,4;11,4;12,4}) -> Trimestru 2 | J9: =YEAR('Introducere date'!$B9) -> 2013 | K9: =MONTH(tblDate[[#This Row],[DATĂ]]) -> 5 | L9: =SUMIFS(tblDate[SUMĂ],tblDate[DATĂ],">="&EOMONTH(tblDate[[#This Row],[DATĂ]],-1)+1,tblDate[DATĂ],"<="&EOMONTH(tblDate[[#This Row],[DATĂ]],0)) -> 21,800.00 lei | M9: =SUMIFS(tblDate[SUMĂ],tblDate[DATĂ],">="&DATE(YEAR(tblDate[[#This Row],[DATĂ]]),1,1),tblDate[DATĂ],"<="&DATE(YEAR(tblDate[[#This Row],[DATĂ]]),12,31),tblDate[TRIMESTRU],tblDate[[#This Row],[TRIMESTRU]]) -> 50,800.00 lei | N9: =SUMIFS(tblDate[SUMĂ],tblDate[DATĂ],">="&DATE(YEAR(tblDate[[#This Row],[DATĂ]]),1,1),tblDate[DATĂ],"<="&DATE(YEAR(tblDate[[#This Row],[DATĂ]]),12,31)) -> 143,800.00 lei | O9: =IFERROR(TREND($L$6:INDEX($L:$L,ROW(),1),$K$6:INDEX($K:$K,ROW(),1),IF(MONTH(tblDate[[#This Row],[DATĂ]])=12,13,MONTH(tblDate[[#This Row],[DATĂ]])+1)),"") -> 29,000.00 lei | P9: =IFERROR(TREND($M$6:INDEX($M:$M,ROW(),1),$I$6:INDEX($I:$I,ROW(),1),IF(tblDate[[#This Row],[TRIMESTRU]]=4,5,tblDate[[#This Row],[TRIMESTRU]]+1)),"") -> 50,800.00 lei | Q9: =IFERROR(TREND($N$6:INDEX($N:$N,ROW(),1),$J$6:INDEX($J:$J,ROW(),1),tblDate[[#This Row],[AN]]+1),"") -> 143,800.00 lei
B10: =40678+(365*2) -> 2013-05-14 | C10: School of Fine Art | D10: 5,800.00 lei | E10: 6,000.00 lei | F10: 4,500.00 lei | G10: =tblDate[[#This Row],[SUMĂ]]-tblDate[[#This Row],[COSTURI]] -> 1,300.00 lei | H10: =DATE(YEAR('Introducere date'!$B10),MONTH('Introducere date'!$B10),1) -> 2013-05-01 | I10: =LOOKUP(MONTH('Introducere date'!$H10),{1,1;2,1;3,1;4,2;5,2;6,2;7,3;8,3;9,3;10,4;11,4;12,4}) -> Trimestru 2 | J10: =YEAR('Introducere date'!$B10) -> 2013 | K10: =MONTH(tblDate[[#This Row],[DATĂ]]) -> 5 | L10: =SUMIFS(tblDate[SUMĂ],tblDate[DATĂ],">="&EOMONTH(tblDate[[#This Row],[DATĂ]],-1)+1,tblDate[DATĂ],"<="&EOMONTH(tblDate[[#This Row],[DATĂ]],0)) -> 21,800.00 lei | M10: =SUMIFS(tblDate[SUMĂ],tblDate[DATĂ],">="&DATE(YEAR(tblDate[[#This Row],[DATĂ]]),1,1),tblDate[DATĂ],"<="&DATE(YEAR(tblDate[[#This Row],[DATĂ]]),12,31),tblDate[TRIMESTRU],tblDate[[#This Row],[TRIMESTRU]]) -> 50,800.00 lei | N10: =SUMIFS(tblDate[SUMĂ],tblDate[DATĂ],">="&DATE(YEAR(tblDate[[#This Row],[DATĂ]]),1,1),tblDate[DATĂ],"<="&DATE(YEAR(tblDate[[#This Row],[DATĂ]]),12,31)) -> 143,800.00 lei | O10: =IFERROR(TREND($L$6:INDEX($L:$L,ROW(),1),$K$6:INDEX($K:$K,ROW(),1),IF(MONTH(tblDate[[#This Row],[DATĂ]])=12,13,MONTH(tblDate[[#This Row],[DATĂ]])+1)),"") -> 29,000.00 lei | P10: =IFERROR(TREND($M$6:INDEX($M:$M,ROW(),1),$I$6:INDEX($I:$I,ROW(),1),IF(tblDate[[#This Row],[TRIMESTRU]]=4,5,tblDate[[#This Row],[TRIMESTRU]]+1)),"") -> 50,800.00 lei | Q10: =IFERROR(TREND($N$6:INDEX($N:$N,ROW(),1),$J$6:INDEX($J:$J,ROW(),1),tblDate[[#This Row],[AN]]+1),"") -> 143,800.00 lei
B11: =40693+(365*2) -> 2013-05-29 | C11: Trey Research | D11: 6,200.00 lei | E11: 6,000.00 lei | F11: 4,500.00 lei | G11: =tblDate[[#This Row],[SUMĂ]]-tblDate[[#This Row],[COSTURI]] -> 1,700.00 lei | H11: =DATE(YEAR('Introducere date'!$B11),MONTH('Introducere date'!$B11),1) -> 2013-05-01 | I11: =LOOKUP(MONTH('Introducere date'!$H11),{1,1;2,1;3,1;4,2;5,2;6,2;7,3;8,3;9,3;10,4;11,4;12,4}) -> Trimestru 2 | J11: =YEAR('Introducere date'!$B11) -> 2013 | K11: =MONTH(tblDate[[#This Row],[DATĂ]]) -> 5 | L11: =SUMIFS(tblDate[SUMĂ],tblDate[DATĂ],">="&EOMONTH(tblDate[[#This Row],[DATĂ]],-1)+1,tblDate[DATĂ],"<="&EOMONTH(tblDate[[#This Row],[DATĂ]],0)) -> 21,800.00 lei | M11: =SUMIFS(tblDate[SUMĂ],tblDate[DATĂ],">="&DATE(YEAR(tblDate[[#This Row],[DATĂ]]),1,1),tblDate[DATĂ],"<="&DATE(YEAR(tblDate[[#This Row],[DATĂ]]),12,31),tblDate[TRIMESTRU],tblDate[[#This Row],[TRIMESTRU]]) -> 50,800.00 lei | N11: =SUMIFS(tblDate[SUMĂ],tblDate[DATĂ],">="&DATE(YEAR(tblDate[[#This Row],[DATĂ]]),1,1),tblDate[DATĂ],"<="&DATE(YEAR(tblDate[[#This Row],[DATĂ]]),12,31)) -> 143,800.00 lei | O11: =IFERROR(TREND($L$6:INDEX($L:$L,ROW(),1),$K$6:INDEX($K:$K,ROW(),1),IF(MONTH(tblDate[[#This Row],[DATĂ]])=12,13,MONTH(tblDate[[#This Row],[DATĂ]])+1)),"") -> 29,000.00 lei | P11: =IFERROR(TREND($M$6:INDEX($M:$M,ROW(),1),$I$6:INDEX($I:$I,ROW(),1),IF(tblDate[[#This Row],[TRIMESTRU]]=4,5,tblDate[[#This Row],[TRIMESTRU]]+1)),"") -> 50,800.00 lei | Q11: =IFERROR(TREND($N$6:INDEX($N:$N,ROW(),1),$J$6:INDEX($J:$J,ROW(),1),tblDate[[#This Row],[AN]]+1),"") -> 143,800.00 lei
B12: =40705+(365*2) -> 2013-06-10 | C12: A. Datum Corporation | D12: 6,900.00 lei | E12: 7,500.00 lei | F12: 5,400.00 lei | G12: =tblDate[[#This Row],[SUMĂ]]-tblDate[[#This Row],[COSTURI]] -> 1,500.00 lei | H12: =DATE(YEAR('Introducere date'!$B12),MONTH('Introducere date'!$B12),1) -> 2013-06-01 | I12: =LOOKUP(MONTH('Introducere date'!$H12),{1,1;2,1;3,1;4,2;5,2;6,2;7,3;8,3;9,3;10,4;11,4;12,4}) -> Trimestru 2 | J12: =YEAR('Introducere date'!$B12) -> 2013 | K12: =MONTH(tblDate[[#This Row],[DATĂ]]) -> 6 | L12: =SUMIFS(tblDate[SUMĂ],tblDate[DATĂ],">="&EOMONTH(tblDate[[#This Row],[DATĂ]],-1)+1,tblDate[DATĂ],"<="&EOMONTH(tblDate[[#This Row],[DATĂ]],0)) -> 14,400.00 lei | M12: =SUMIFS(tblDate[SUMĂ],tblDate[DATĂ],">="&DATE(YEAR(tblDate[[#This Row],[DATĂ]]),1,1),tblDate[DATĂ],"<="&DATE(YEAR(tblDate[[#This Row],[DATĂ]]),12,31),tblDate[TRIMESTRU],tblDate[[#This Row],[TRIMESTRU]]) -> 50,800.00 lei | N12: =SUMIFS(tblDate[SUMĂ],tblDate[DATĂ],">="&DATE(YEAR(tblDate[[#This Row],[DATĂ]]),1,1),tblDate[DATĂ],"<="&DATE(YEAR(tblDate[[#This Row],[DATĂ]]),12,31)) -> 143,800.00 lei | O12: =IFERROR(TREND($L$6:INDEX($L:$L,ROW(),1),$K$6:INDEX($K:$K,ROW(),1),IF(MONTH(tblDate[[#This Row],[DATĂ]])=12,13,MONTH(tblDate[[#This Row],[DATĂ]])+1)),"") -> 21,600.00 lei | P12: =IFERROR(TREND($M$6:INDEX($M:$M,ROW(),1),$I$6:INDEX($I:$I,ROW(),1),IF(tblDate[[#This Row],[TRIMESTRU]]=4,5,tblDate[[#This Row],[TRIMESTRU]]+1)),"") -> 50,800.00 lei | Q12: =IFERROR(TREND($N$6:INDEX($N:$N,ROW(),1),$J$6:INDEX($J:$J,ROW(),1),tblDate[[#This Row],[AN]]+1),"") -> 143,800.00 lei
B13: =40716+(365*2) -> 2013-06-21 | C13: Contoso Pharmaceuticals | D13: 7,500.00 lei | E13: 7,200.00 lei | F13: 6,500.00 lei | G13: =tblDate[[#This Row],[SUMĂ]]-tblDate[[#This Row],[COSTURI]] -> 1,000.00 lei | H13: =DATE(YEAR('Introducere date'!$B13),MONTH('Introducere date'!$B13),1) -> 2013-06-01 | I13: =LOOKUP(MONTH('Introducere date'!$H13),{1,1;2,1;3,1;4,2;5,2;6,2;7,3;8,3;9,3;10,4;11,4;12,4}) -> Trimestru 2 | J13: =YEAR('Introducere date'!$B13) -> 2013 | K13: =MONTH(tblDate[[#This Row],[DATĂ]]) -> 6 | L13: =SUMIFS(tblDate[SUMĂ],tblDate[DATĂ],">="&EOMONTH(tblDate[[#This Row],[DATĂ]],-1)+1,tblDate[DATĂ],"<="&EOMONTH(tblDate[[#This Row],[DATĂ]],0)) -> 14,400.00 lei | M13: =SUMIFS(tblDate[SUMĂ],tblDate[DATĂ],">="&DATE(YEAR(tblDate[[#This Row],[DATĂ]]),1,1),tblDate[DATĂ],"<="&DATE(YEAR(tblDate[[#This Row],[DATĂ]]),12,31),tblDate[TRIMESTRU],tblDate[[#This Row],[TRIMESTRU]]) -> 50,800.00 lei | N13: =SUMIFS(tblDate[SUMĂ],tblDate[DATĂ],">="&DATE(YEAR(tblDate[[#This Row],[DATĂ]]),1,1),tblDate[DATĂ],"<="&DATE(YEAR(tblDate[[#This Row],[DATĂ]]),12,31)) -> 143,800.00 lei | O13: =IFERROR(TREND($L$6:INDEX($L:$L,ROW(),1),$K$6:INDEX($K:$K,ROW(),1),IF(MONTH(tblDate[[#This Row],[DATĂ]])=12,13,MONTH(tblDate[[#This Row],[DATĂ]])+1)),"") -> 17,950.00 lei | P13: =IFERROR(TREND($M$6:INDEX($M:$M,ROW(),1),$I$6:INDEX($I:$I,ROW(),1),IF(tblDate[[#This Row],[TRIMESTRU]]=4,5,tblDate[[#This Row],[TRIMESTRU]]+1)),"") -> 50,800.00 lei | Q13: =IFERROR(TREND($N$6:INDEX($N:$N,ROW(),1),$J$6:INDEX($J:$J,ROW(),1),tblDate[[#This Row],[AN]]+1),"") -> 143,800.00 lei
B14: =40731+(365*2) -> 2013-07-06 | C14: Consolidated Messenger | D14: 8,700.00 lei | E14: 8,500.00 lei | F14: 7,250.00 lei | G14: =tblDate[[#This Row],[SUMĂ]]-tblDate[[#This Row],[COSTURI]] -> 1,450.00 lei | H14: =DATE(YEAR('Introducere date'!$B14),MONTH('Introducere date'!$B14),1) -> 2013-07-01 | I14: =LOOKUP(MONTH('Introducere date'!$H14),{1,1;2,1;3,1;4,2;5,2;6,2;7,3;8,3;9,3;10,4;11,4;12,4}) -> Trimestru 3 | J14: =YEAR('Introducere date'!$B14) -> 2013 | K14: =MONTH(tblDate[[#This Row],[DATĂ]]) -> 7 | L14: =SUMIFS(tblDate[SUMĂ],tblDate[DATĂ],">="&EOMONTH(tblDate[[#This Row],[DATĂ]],-1)+1,tblDate[DATĂ],"<="&EOMONTH(tblDate[[#This Row],[DATĂ]],0)) -> 8,700.00 lei | M14: =SUMIFS(tblDate[SUMĂ],tblDate[DATĂ],">="&DATE(YEAR(tblDate[[#This Row],[DATĂ]]),1,1),tblDate[DATĂ],"<="&DATE(YEAR(tblDate[[#This Row],[DATĂ]]),12,31),tblDate[TRIMESTRU],tblDate[[#This Row],[TRIMESTRU]]) -> 49,100.00 lei | N14: =SUMIFS(tblDate[SUMĂ],tblDate[DATĂ],">="&DATE(YEAR(tblDate[[#This Row],[DATĂ]]),1,1),tblDate[DATĂ],"<="&DATE(YEAR(tblDate[[#This Row],[DATĂ]]),12,31)) -> 143,800.00 lei | O14: =IFERROR(TREND($L$6:INDEX($L:$L,ROW(),1),$K$6:INDEX($K:$K,ROW(),1),IF(MONTH(tblDate[[#This Row],[DATĂ]])=12,13,MONTH(tblDate[[#This Row],[DATĂ]])+1)),"") -> 10,776.47 lei | P14: =IFERROR(TREND($M$6:INDEX($M:$M,ROW(),1),$I$6:INDEX($I:$I,ROW(),1),IF(tblDate[[#This Row],[TRIMESTRU]]=4,5,tblDate[[#This Row],[TRIMESTRU]]+1)),"") -> 47,400.00 lei | Q14: =IFERROR(TREND($N$6:INDEX($N:$N,ROW(),1),$J$6:INDEX($J:$J,ROW(),1),tblDate[[#This Row],[AN]]+1),"") -> 143,800.00 lei
B15: =40761+(365*2) -> 2013-08-05 | C15: Proseware, Inc. | D15: 8,500.00 lei | E15: 8,300.00 lei | F15: 7,100.00 lei | G15: =tblDate[[#This Row],[SUMĂ]]-tblDate[[#This Row],[COSTURI]] -> 1,400.00 lei | H15: =DATE(YEAR('Introducere date'!$B15),MONTH('Introducere date'!$B15),1) -> 2013-08-01 | I15: =LOOKUP(MONTH('Introducere date'!$H15),{1,1;2,1;3,1;4,2;5,2;6,2;7,3;8,3;9,3;10,4;11,4;12,4}) -> Trimestru 3 | J15: =YEAR('Introducere date'!$B15) -> 2013 | K15: =MONTH(tblDate[[#This Row],[DATĂ]]) -> 8 | L15: =SUMIFS(tblDate[SUMĂ],tblDate[DATĂ],">="&EOMONTH(tblDate[[#This Row],[DATĂ]],-1)+1,tblDate[DATĂ],"<="&EOMONTH(tblDate[[#This Row],[DATĂ]],0)) -> 16,400.00 lei | M15: =SUMIFS(tblDate[SUMĂ],tblDate[DATĂ],">="&DATE(YEAR(tblDate[[#This Row],[DATĂ]]),1,1),tblDate[DATĂ],"<="&DATE(YEAR(tblDate[[#This Row],[DATĂ]]),12,31),tblDate[TRIMESTRU],tblDate[[#This Row],[TRIMESTRU]]) -> 49,100.00 lei | N15: =SUMIFS(tblDate[SUMĂ],tblDate[DATĂ],">="&DATE(YEAR(tblDate[[#This Row],[DATĂ]]),1,1),tblDate[DATĂ],"<="&DATE(YEAR(tblDate[[#This Row],[DATĂ]]),12,31)) -> 143,800.00 lei | O15: =IFERROR(TREND($L$6:INDEX($L:$L,ROW(),1),$K$6:INDEX($K:$K,ROW(),1),IF(MONTH(tblDate[[#This Row],[DATĂ]])=12,13,MONTH(tblDate[[#This Row],[DATĂ]])+1)),"") -> 12,455.86 lei | P15: =IFERROR(TREND($M$6:INDEX($M:$M,ROW(),1),$I$6:INDEX($I:$I,ROW(),1),IF(tblDate[[#This Row],[TRIMESTRU]]=4,5,tblDate[[#This Row],[TRIMESTRU]]+1)),"") -> 47,400.00 lei | Q15: =IFERROR(TREND($N$6:INDEX($N:$N,ROW(),1),$J$6:INDEX($J:$J,ROW(),1),tblDate[[#This Row],[AN]]+1),"") -> 143,800.00 lei
B16: =40775+(365*2) -> 2013-08-19 | C16: School of Fine Art | D16: 7,900.00 lei | E16: 7,700.00 lei | F16: 6,600.00 lei | G16: =tblDate[[#This Row],[SUMĂ]]-tblDate[[#This Row],[COSTURI]] -> 1,300.00 lei | H16: =DATE(YEAR('Introducere date'!$B16),MONTH('Introducere date'!$B16),1) -> 2013-08-01 | I16: =LOOKUP(MONTH('Introducere date'!$H16),{1,1;2,1;3,1;4,2;5,2;6,2;7,3;8,3;9,3;10,4;11,4;12,4}) -> Trimestru 3 | J16: =YEAR('Introducere date'!$B16) -> 2013 | K16: =MONTH(tblDate[[#This Row],[DATĂ]]) -> 8 | L16: =SUMIFS(tblDate[SUMĂ],tblDate[DATĂ],">="&EOMONTH(tblDate[[#This Row],[DATĂ]],-1)+1,tblDate[DATĂ],"<="&EOMONTH(tblDate[[#This Row],[DATĂ]],0)) -> 16,400.00 lei | M16: =SUMIFS(tblDate[SUMĂ],tblDate[DATĂ],">="&DATE(YEAR(tblDate[[#This Row],[DATĂ]]),1,1),tblDate[DATĂ],"<="&DATE(YEAR(tblDate[[#This Row],[DATĂ]]),12,31),tblDate[TRIMESTRU],tblDate[[#This Row],[TRIMESTRU]]) -> 49,100.00 lei | N16: =SUMIFS(tblDate[SUMĂ],tblDate[DATĂ],">="&DATE(YEAR(tblDate[[#This Row],[DATĂ]]),1,1),tblDate[DATĂ],"<="&DATE(YEAR(tblDate[[#This Row],[DATĂ]]),12,31)) -> 143,800.00 lei | O16: =IFERROR(TREND($L$6:INDEX($L:$L,ROW(),1),$K$6:INDEX($K:$K,ROW(),1),IF(MONTH(tblDate[[#This Row],[DATĂ]])=12,13,MONTH(tblDate[[#This Row],[DATĂ]])+1)),"") -> 13,667.57 lei | P16: =IFERROR(TREND($M$6:INDEX($M:$M,ROW(),1),$I$6:INDEX($I:$I,ROW(),1),IF(tblDate[[#This Row],[TRIMESTRU]]=4,5,tblDate[[#This Row],[TRIMESTRU]]+1)),"") -> 47,400.00 lei | Q16: =IFERROR(TREND($N$6:INDEX($N:$N,ROW(),1),$J$6:INDEX($J:$J,ROW(),1),tblDate[[#This Row],[AN]]+1),"") -> 143,800.00 lei
B17: =40791+(365*2) -> 2013-09-04 | C17: Trey Research | D17: 9,100.00 lei | E17: 8,900.00 lei | F17: 7,900.00 lei | G17: =tblDate[[#This Row],[SUMĂ]]-tblDate[[#This Row],[COSTURI]] -> 1,200.00 lei | H17: =DATE(YEAR('Introducere date'!$B17),MONTH('Introducere date'!$B17),1) -> 2013-09-01 | I17: =LOOKUP(MONTH('Introducere date'!$H17),{1,1;2,1;3,1;4,2;5,2;6,2;7,3;8,3;9,3;10,4;11,4;12,4}) -> Trimestru 3 | J17: =YEAR('Introducere date'!$B17) -> 2013 | K17: =MONTH(tblDate[[#This Row],[DATĂ]]) -> 9 | L17: =SUMIFS(tblDate[SUMĂ],tblDate[DATĂ],">="&EOMONTH(tblDate[[#This Row],[DATĂ]],-1)+1,tblDate[DATĂ],"<="&EOMONTH(tblDate[[#This Row],[DATĂ]],0)) -> 24,000.00 lei | M17: =SUMIFS(tblDate[SUMĂ],tblDate[DATĂ],">="&DATE(YEAR(tblDate[[#This Row],[DATĂ]]),1,1),tblDate[DATĂ],"<="&DATE(YEAR(tblDate[[#This Row],[DATĂ]]),12,31),tblDate[TRIMESTRU],tblDate[[#This Row],[TRIMESTRU]]) -> 49,100.00 lei | N17: =SUMIFS(tblDate[SUMĂ],tblDate[DATĂ],">="&DATE(YEAR(tblDate[[#This Row],[DATĂ]]),1,1),tblDate[DATĂ],"<="&DATE(YEAR(tblDate[[#This Row],[DATĂ]]),12,31)) -> 143,800.00 lei | O17: =IFERROR(TREND($L$6:INDEX($L:$L,ROW(),1),$K$6:INDEX($K:$K,ROW(),1),IF(MONTH(tblDate[[#This Row],[DATĂ]])=12,13,MONTH(tblDate[[#This Row],[DATĂ]])+1)),"") -> 17,651.67 lei | P17: =IFERROR(TREND($M$6:INDEX($M:$M,ROW(),1),$I$6:INDEX($I:$I,ROW(),1),IF(tblDate[[#This Row],[TRIMESTRU]]=4,5,tblDate[[#This Row],[TRIMESTRU]]+1)),"") -> 47,400.00 lei | Q17: =IFERROR(TREND($N$6:INDEX($N:$N,ROW(),1),$J$6:INDEX($J:$J,ROW(),1),tblDate[[#This Row],[AN]]+1),"") -> 143,800.00 lei
B18: =40807+(365*2) -> 2013-09-20 | C18: Contoso Pharmaceuticals | D18: 5,600.00 lei | E18: 5,800.00 lei | F18: 4,500.00 lei | G18: =tblDate[[#This Row],[SUMĂ]]-tblDate[[#This Row],[COSTURI]] -> 1,100.00 lei | H18: =DATE(YEAR('Introducere date'!$B18),MONTH('Introducere date'!$B18),1) -> 2013-09-01 | I18: =LOOKUP(MONTH('Introducere date'!$H18),{1,1;2,1;3,1;4,2;5,2;6,2;7,3;8,3;9,3;10,4;11,4;12,4}) -> Trimestru 3 | J18: =YEAR('Introducere date'!$B18) -> 2013 | K18: =MONTH(tblDate[[#This Row],[DATĂ]]) -> 9 | L18: =SUMIFS(tblDate[SUMĂ],tblDate[DATĂ],">="&EOMONTH(tblDate[[#This Row],[DATĂ]],-1)+1,tblDate[DATĂ],"<="&EOMONTH(tblDate[[#This Row],[DATĂ]],0)) -> 24,000.00 lei | M18: =SUMIFS(tblDate[SUMĂ],tblDate[DATĂ],">="&DATE(YEAR(tblDate[[#This Row],[DATĂ]]),1,1),tblDate[DATĂ],"<="&DATE(YEAR(tblDate[[#This Row],[DATĂ]]),12,31),tblDate[TRIMESTRU],tblDate[[#This Row],[TRIMESTRU]]) -> 49,100.00 lei | N18: =SUMIFS(tblDate[SUMĂ],tblDate[DATĂ],">="&DATE(YEAR(tblDate[[#This Row],[DATĂ]]),1,1),tblDate[DATĂ],"<="&DATE(YEAR(tblDate[[#This Row],[DATĂ]]),12,31)) -> 143,800.00 lei | O18: =IFERROR(TREND($L$6:INDEX($L:$L,ROW(),1),$K$6:INDEX($K:$K,ROW(),1),IF(MONTH(tblDate[[#This Row],[DATĂ]])=12,13,MONTH(tblDate[[#This Row],[DATĂ]])+1)),"") -> 19,877.91 lei | P18: =IFERROR(TREND($M$6:INDEX($M:$M,ROW(),1),$I$6:INDEX($I:$I,ROW(),1),IF(tblDate[[#This Row],[TRIMESTRU]]=4,5,tblDate[[#This Row],[TRIMESTRU]]+1)),"") -> 47,400.00 lei | Q18: =IFERROR(TREND($N$6:INDEX($N:$N,ROW(),1),$J$6:INDEX($J:$J,ROW(),1),tblDate[[#This Row],[AN]]+1),"") -> 143,800.00 lei
B19: =40812+(365*2) -> 2013-09-25 | C19: Consolidated Messenger | D19: 9,300.00 lei | E19: 9,100.00 lei | F19: 7,500.00 lei | G19: =tblDate[[#This Row],[SUMĂ]]-tblDate[[#This Row],[COSTURI]] -> 1,800.00 lei | H19: =DATE(YEAR('Introducere date'!$B19),MONTH('Introducere date'!$B19),1) -> 2013-09-01 | I19: =LOOKUP(MONTH('Introducere date'!$H19),{1,1;2,1;3,1;4,2;5,2;6,2;7,3;8,3;9,3;10,4;11,4;12,4}) -> Trimestru 3 | J19: =YEAR('Introducere date'!$B19) -> 2013 | K19: =MONTH(tblDate[[#This Row],[DATĂ]]) -> 9 | L19: =SUMIFS(tblDate[SUMĂ],tblDate[DATĂ],">="&EOMONTH(tblDate[[#This Row],[DATĂ]],-1)+1,tblDate[DATĂ],"<="&EOMONTH(tblDate[[#This Row],[DATĂ]],0)) -> 24,000.00 lei | M19: =SUMIFS(tblDate[SUMĂ],tblDate[DATĂ],">="&DATE(YEAR(tblDate[[#This Row],[DATĂ]]),1,1),tblDate[DATĂ],"<="&DATE(YEAR(tblDate[[#This Row],[DATĂ]]),12,31),tblDate[TRIMESTRU],tblDate[[#This Row],[TRIMESTRU]]) -> 49,100.00 lei | N19: =SUMIFS(tblDate[SUMĂ],tblDate[DATĂ],">="&DATE(YEAR(tblDate[[#This Row],[DATĂ]]),1,1),tblDate[DATĂ],"<="&DATE(YEAR(tblDate[[#This Row],[DATĂ]]),12,31)) -> 143,800.00 lei | O19: =IFERROR(TREND($L$6:INDEX($L:$L,ROW(),1),$K$6:INDEX($K:$K,ROW(),1),IF(MONTH(tblDate[[#This Row],[DATĂ]])=12,13,MONTH(tblDate[[#This Row],[DATĂ]])+1)),"") -> 21,138.05 lei | P19: =IFERROR(TREND($M$6:INDEX($M:$M,ROW(),1),$I$6:INDEX($I:$I,ROW(),1),IF(tblDate[[#This Row],[TRIMESTRU]]=4,5,tblDate[[#This Row],[TRIMESTRU]]+1)),"") -> 47,400.00 lei | Q19: =IFERROR(TREND($N$6:INDEX($N:$N,ROW(),1),$J$6:INDEX($J:$J,ROW(),1),tblDate[[#This Row],[AN]]+1),"") -> 143,800.00 lei
B20: =40832+(365*2) -> 2013-10-15 | C20: Proseware, Inc. | D20: 8,800.00 lei | E20: 9,350.00 lei | F20: 7,100.00 lei | G20: =tblDate[[#This Row],[SUMĂ]]-tblDate[[#This Row],[COSTURI]] -> 1,700.00 lei | H20: =DATE(YEAR('Introducere date'!$B20),MONTH('Introducere date'!$B20),1) -> 2013-10-01 | I20: =LOOKUP(MONTH('Introducere date'!$H20),{1,1;2,1;3,1;4,2;5,2;6,2;7,3;8,3;9,3;10,4;11,4;12,4}) -> Trimestru 4 | J20: =YEAR('Introducere date'!$B20) -> 2013 | K20: =MONTH(tblDate[[#This Row],[DATĂ]]) -> 10 | L20: =SUMIFS(tblDate[SUMĂ],tblDate[DATĂ],">="&EOMONTH(tblDate[[#This Row],[DATĂ]],-1)+1,tblDate[DATĂ],"<="&EOMONTH(tblDate[[#This Row],[DATĂ]],0)) -> 8,800.00 lei | M20: =SUMIFS(tblDate[SUMĂ],tblDate[DATĂ],">="&DATE(YEAR(tblDate[[#This Row],[DATĂ]]),1,1),tblDate[DATĂ],"<="&DATE(YEAR(tblDate[[#This Row],[DATĂ]]),12,31),tblDate[TRIMESTRU],tblDate[[#This Row],[TRIMESTRU]]) -> 43,900.00 lei | N20: =SUMIFS(tblDate[SUMĂ],tblDate[DATĂ],">="&DATE(YEAR(tblDate[[#This Row],[DATĂ]]),1,1),tblDate[DATĂ],"<="&DATE(YEAR(tblDate[[#This Row],[DATĂ]]),12,31)) -> 143,800.00 lei | O20: =IFERROR(TREND($L$6:INDEX($L:$L,ROW(),1),$K$6:INDEX($K:$K,ROW(),1),IF(MONTH(tblDate[[#This Row],[DATĂ]])=12,13,MONTH(tblDate[[#This Row],[DATĂ]])+1)),"") -> 17,951.74 lei | P20: =IFERROR(TREND($M$6:INDEX($M:$M,ROW(),1),$I$6:INDEX($I:$I,ROW(),1),IF(tblDate[[#This Row],[TRIMESTRU]]=4,5,tblDate[[#This Row],[TRIMESTRU]]+1)),"") -> 43,258.14 lei | Q20: =IFERROR(TREND($N$6:INDEX($N:$N,ROW(),1),$J$6:INDEX($J:$J,ROW(),1),tblDate[[#This Row],[AN]]+1),"") -> 143,800.00 lei
B21: =40853+(365*2) -> 2013-11-05 | C21: School of Fine Art | D21: 9,100.00 lei | E21: 9,200.00 lei | F21: 7,850.00 lei | G21: =tblDate[[#This Row],[SUMĂ]]-tblDate[[#This Row],[COSTURI]] -> 1,250.00 lei | H21: =DATE(YEAR('Introducere date'!$B21),MONTH('Introducere date'!$B21),1) -> 2013-11-01 | I21: =LOOKUP(MONTH('Introducere date'!$H21),{1,1;2,1;3,1;4,2;5,2;6,2;7,3;8,3;9,3;10,4;11,4;12,4}) -> Trimestru 4 | J21: =YEAR('Introducere date'!$B21) -> 2013 | K21: =MONTH(tblDate[[#This Row],[DATĂ]]) -> 11 | L21: =SUMIFS(tblDate[SUMĂ],tblDate[DATĂ],">="&EOMONTH(tblDate[[#This Row],[DATĂ]],-1)+1,tblDate[DATĂ],"<="&EOMONTH(tblDate[[#This Row],[DATĂ]],0)) -> 25,600.00 lei | M21: =SUMIFS(tblDate[SUMĂ],tblDate[DATĂ],">="&DATE(YEAR(tblDate[[#This Row],[DATĂ]]),1,1),tblDate[DATĂ],"<="&DATE(YEAR(tblDate[[#This Row],[DATĂ]]),12,31),tblDate[TRIMESTRU],tblDate[[#This Row],[TRIMESTRU]]) -> 43,900.00 lei | N21: =SUMIFS(tblDate[SUMĂ],tblDate[DATĂ],">="&DATE(YEAR(tblDate[[#This Row],[DATĂ]]),1,1),tblDate[DATĂ],"<="&DATE(YEAR(tblDate[[#This Row],[DATĂ]]),12,31)) -> 143,800.00 lei | O21: =IFERROR(TREND($L$6:INDEX($L:$L,ROW(),1),$K$6:INDEX($K:$K,ROW(),1),IF(MONTH(tblDate[[#This Row],[DATĂ]])=12,13,MONTH(tblDate[[#This Row],[DATĂ]])+1)),"") -> 20,556.13 lei | P21: =IFERROR(TREND($M$6:INDEX($M:$M,ROW(),1),$I$6:INDEX($I:$I,ROW(),1),IF(tblDate[[#This Row],[TRIMESTRU]]=4,5,tblDate[[#This Row],[TRIMESTRU]]+1)),"") -> 42,312.90 lei | Q21: =IFERROR(TREND($N$6:INDEX($N:$N,ROW(),1),$J$6:INDEX($J:$J,ROW(),1),tblDate[[#This Row],[AN]]+1),"") -> 143,800.00 lei
B22: =40874+(365*2) -> 2013-11-26 | C22: Trey Research | D22: 9,000.00 lei | E22: 10,000.00 lei | F22: 7,575.00 lei | G22: =tblDate[[#This Row],[SUMĂ]]-tblDate[[#This Row],[COSTURI]] -> 1,425.00 lei | H22: =DATE(YEAR('Introducere date'!$B22),MONTH('Introducere date'!$B22),1) -> 2013-11-01 | I22: =LOOKUP(MONTH('Introducere date'!$H22),{1,1;2,1;3,1;4,2;5,2;6,2;7,3;8,3;9,3;10,4;11,4;12,4}) -> Trimestru 4 | J22: =YEAR('Introducere date'!$B22) -> 2013 | K22: =MONTH(tblDate[[#This Row],[DATĂ]]) -> 11 | L22: =SUMIFS(tblDate[SUMĂ],tblDate[DATĂ],">="&EOMONTH(tblDate[[#This Row],[DATĂ]],-1)+1,tblDate[DATĂ],"<="&EOMONTH(tblDate[[#This Row],[DATĂ]],0)) -> 25,600.00 lei | M22: =SUMIFS(tblDate[SUMĂ],tblDate[DATĂ],">="&DATE(YEAR(tblDate[[#This Row],[DATĂ]]),1,1),tblDate[DATĂ],"<="&DATE(YEAR(tblDate[[#This Row],[DATĂ]]),12,31),tblDate[TRIMESTRU],tblDate[[#This Row],[TRIMESTRU]]) -> 43,900.00 lei | N22: =SUMIFS(tblDate[SUMĂ],tblDate[DATĂ],">="&DATE(YEAR(tblDate[[#This Row],[DATĂ]]),1,1),tblDate[DATĂ],"<="&DATE(YEAR(tblDate[[#This Row],[DATĂ]]),12,31)) -> 143,800.00 lei | O22: =IFERROR(TREND($L$6:INDEX($L:$L,ROW(),1),$K$6:INDEX($K:$K,ROW(),1),IF(MONTH(tblDate[[#This Row],[DATĂ]])=12,13,MONTH(tblDate[[#This Row],[DATĂ]])+1)),"") -> 21,997.14 lei | P22: =IFERROR(TREND($M$6:INDEX($M:$M,ROW(),1),$I$6:INDEX($I:$I,ROW(),1),IF(tblDate[[#This Row],[TRIMESTRU]]=4,5,tblDate[[#This Row],[TRIMESTRU]]+1)),"") -> 41,811.11 lei | Q22: =IFERROR(TREND($N$6:INDEX($N:$N,ROW(),1),$J$6:INDEX($J:$J,ROW(),1),tblDate[[#This Row],[AN]]+1),"") -> 143,800.00 lei
B23: =40878+(365*2) -> 2013-11-30 | C23: Trey Research | D23: 7,500.00 lei | E23: 8,000.00 lei | F23: 5,850.00 lei | G23: =tblDate[[#This Row],[SUMĂ]]-tblDate[[#This Row],[COSTURI]] -> 1,650.00 lei | H23: =DATE(YEAR('Introducere date'!$B23),MONTH('Introducere date'!$B23),1) -> 2013-11-01 | I23: =LOOKUP(MONTH('Introducere date'!$H23),{1,1;2,1;3,1;4,2;5,2;6,2;7,3;8,3;9,3;10,4;11,4;12,4}) -> Trimestru 4 | J23: =YEAR('Introducere date'!$B23) -> 2013 | K23: =MONTH(tblDate[[#This Row],[DATĂ]]) -> 11 | L23: =SUMIFS(tblDate[SUMĂ],tblDate[DATĂ],">="&EOMONTH(tblDate[[#This Row],[DATĂ]],-1)+1,tblDate[DATĂ],"<="&EOMONTH(tblDate[[#This Row],[DATĂ]],0)) -> 25,600.00 lei | M23: =SUMIFS(tblDate[SUMĂ],tblDate[DATĂ],">="&DATE(YEAR(tblDate[[#This Row],[DATĂ]]),1,1),tblDate[DATĂ],"<="&DATE(YEAR(tblDate[[#This Row],[DATĂ]]),12,31),tblDate[TRIMESTRU],tblDate[[#This Row],[TRIMESTRU]]) -> 43,900.00 lei | N23: =SUMIFS(tblDate[SUMĂ],tblDate[DATĂ],">="&DATE(YEAR(tblDate[[#This Row],[DATĂ]]),1,1),tblDate[DATĂ],"<="&DATE(YEAR(tblDate[[#This Row],[DATĂ]]),12,31)) -> 143,800.00 lei | O23: =IFERROR(TREND($L$6:INDEX($L:$L,ROW(),1),$K$6:INDEX($K:$K,ROW(),1),IF(MONTH(tblDate[[#This Row],[DATĂ]])=12,13,MONTH(tblDate[[#This Row],[DATĂ]])+1)),"") -> 22,917.63 lei | P23: =IFERROR(TREND($M$6:INDEX($M:$M,ROW(),1),$I$6:INDEX($I:$I,ROW(),1),IF(tblDate[[#This Row],[TRIMESTRU]]=4,5,tblDate[[#This Row],[TRIMESTRU]]+1)),"") -> 41,500.00 lei | Q23: =IFERROR(TREND($N$6:INDEX($N:$N,ROW(),1),$J$6:INDEX($J:$J,ROW(),1),tblDate[[#This Row],[AN]]+1),"") -> 143,800.00 lei
B24: =40889+(365*2) -> 2013-12-11 | C24: Contoso Pharmaceuticals | D24: 9,500.00 lei | E24: 9,200.00 lei | F24: 8,500.00 lei | G24: =tblDate[[#This Row],[SUMĂ]]-tblDate[[#This Row],[COSTURI]] -> 1,000.00 lei | H24: =DATE(YEAR('Introducere date'!$B24),MONTH('Introducere date'!$B24),1) -> 2013-12-01 | I24: =LOOKUP(MONTH('Introducere date'!$H24),{1,1;2,1;3,1;4,2;5,2;6,2;7,3;8,3;9,3;10,4;11,4;12,4}) -> Trimestru 4 | J24: =YEAR('Introducere date'!$B24) -> 2013 | K24: =MONTH(tblDate[[#This Row],[DATĂ]]) -> 12 | L24: =SUMIFS(tblDate[SUMĂ],tblDate[DATĂ],">="&EOMONTH(tblDate[[#This Row],[DATĂ]],-1)+1,tblDate[DATĂ],"<="&EOMONTH(tblDate[[#This Row],[DATĂ]],0)) -> 9,500.00 lei | M24: =SUMIFS(tblDate[SUMĂ],tblDate[DATĂ],">="&DATE(YEAR(tblDate[[#This Row],[DATĂ]]),1,1),tblDate[DATĂ],"<="&DATE(YEAR(tblDate[[#This Row],[DATĂ]]),12,31),tblDate[TRIMESTRU],tblDate[[#This Row],[TRIMESTRU]]) -> 43,900.00 lei | N24: =SUMIFS(tblDate[SUMĂ],tblDate[DATĂ],">="&DATE(YEAR(tblDate[[#This Row],[DATĂ]]),1,1),tblDate[DATĂ],"<="&DATE(YEAR(tblDate[[#This Row],[DATĂ]]),12,31)) -> 143,800.00 lei | O24: =IFERROR(TREND($L$6:INDEX($L:$L,ROW(),1),$K$6:INDEX($K:$K,ROW(),1),IF(MONTH(tblDate[[#This Row],[DATĂ]])=12,13,MONTH(tblDate[[#This Row],[DATĂ]])+1)),"") -> 20,504.31 lei | P24: =IFERROR(TREND($M$6:INDEX($M:$M,ROW(),1),$I$6:INDEX($I:$I,ROW(),1),IF(tblDate[[#This Row],[TRIMESTRU]]=4,5,tblDate[[#This Row],[TRIMESTRU]]+1)),"") -> 41,288.24 lei | Q24: =IFERROR(TREND($N$6:INDEX($N:$N,ROW(),1),$J$6:INDEX($J:$J,ROW(),1),tblDate[[#This Row],[AN]]+1),"") -> 143,800.00 lei

Sheet Raport vânzări
B2: LUNAR RAPORT VÂNZĂRI
B5: AN | C5: TRIMESTRU | D5: LUNĂ | E5: FIRMĂ | F5: TOTAL VÂNZĂRI
B6: 2013 | C6: Trimestru 2 | D6: 2013-04-01 | E6: A. Datum Corporation | F6: 6,400.00 lei
E7: Contoso Pharmaceuticals | F7: 8,200.00 lei
D8: 2013-05-01 | E8: Consolidated Messenger | F8: 4,400.00 lei
E9: Proseware, Inc. | F9: 5,400.00 lei
E10: School of Fine Art | F10: 5,800.00 lei
E11: Trey Research | F11: 6,200.00 lei
D12: 2013-06-01 | E12: A. Datum Corporation | F12: 6,900.00 lei
E13: Contoso Pharmaceuticals | F13: 7,500.00 lei
C14: Trimestru 2 Total | F14: 50,800.00 lei
C15: Trimestru 3 | D15: 2013-07-01 | E15: Consolidated Messenger | F15: 8,700.00 lei
D16: 2013-08-01 | E16: Proseware, Inc. | F16: 8,500.00 lei
E17: School of Fine Art | F17: 7,900.00 lei
D18: 2013-09-01 | E18: Consolidated Messenger | F18: 9,300.00 lei
E19: Contoso Pharmaceuticals | F19: 5,600.00 lei
E20: Trey Research | F20: 9,100.00 lei
C21: Trimestru 3 Total | F21: 49,100.00 lei
C22: Trimestru 4 | D22: 2013-10-01 | E22: Proseware, Inc. | F22: 8,800.00 lei
D23: 2013-11-01 | E23: School of Fine Art | F23: 9,100.00 lei
E24: Trey Research | F24: 16,500.00 lei
D25: 2013-12-01 | E25: Contoso Pharmaceuticals | F25: 9,500.00 lei
C26: Trimestru 4 Total | F26: 43,900.00 lei
B27: Total 2013 | F27: 143,800.00 lei
B28: Total general | F28: 143,800.00 lei

Sheet Prognoză vânzări
B2: LUNAR PROGNOZĂ VÂNZĂRI
B3: ="DATA DE AZI: "&UPPER(TEXT(TODAY(),"dd mmmm yyyy")) -> DATA DE AZI: 23 NOIEMBRIE 2012 | D3: =--TRIM(RIGHT(B3,LEN(B3)-FIND(":",B3))) -> 2012-11-23
B5: LUNA ACEASTA | C5: REAL | D5: PLAN | E5: VARIANŢĂ | F5: % | G5: PROCENT ACTUAL | H5: PLAN ACTUAL | I5: VARIANŢĂ ACTUALĂ | J5: % ACTUAL
B6: Cantitate | C6: =COUNTIF('Introducere date'!$B$6:$B$24,">="&DATE(fAn,MONTH(fDată),1))-COUNTIF('Introducere date'!$B$6:$B$24,">"&EOMONTH(fDată,0)) -> 0 | G6: =COUNTIF(tblDate[DATĂ],"<="&EOMONTH(fDată,0)) -> 0
B7: Vânzări | C7: =SUMIF(tblDate[DATĂ],">="&DATE(fAn,MONTH(fDată),1),tblDate[SUMĂ])-SUMIF(tblDate[DATĂ],">"&EOMONTH(fDată,0),tblDate[SUMĂ]) -> 0.00 lei | D7: =SUMIF('Introducere date'!$B$6:$B$24,">="&DATE(fAn,MONTH(fDată),1),'Introducere date'!$E$6:$E$24)-SUMIF('Introducere date'!$B$6:$B$24,">"&EOMONTH(fDată,0),'Introducere date'!$E$6:$E$24) -> 0.00 lei | E7: =D7-C7 -> 0.00 lei | F7: =IFERROR(D7/C7,"-") -> - | G7: =SUMIF(tblDate[DATĂ],"<="&EOMONTH(fDată,0),tblDate[SUMĂ]) -> 0.00 lei | H7: =SUMIF(tblDate[DATĂ],"<="&EOMONTH(fDată,0),tblDate[PLANIFICATE]) -> 0.00 lei | I7: =H7-G7 -> 0.00 lei | J7: =IFERROR(H7/G7,"") -> 
B8: Venituri | C8: =(SUMIF(tblDate[DATĂ],">="&DATE(fAn,MONTH(fDată),1),tblDate[SUMĂ])-SUMIF(tblDate[DATĂ],">"&EOMONTH(fDată,0),tblDate[SUMĂ]))-(SUMIF(tblDate[DATĂ],">="&DATE(fAn,MONTH(fDată),1),tblDate[COSTURI])-SUMIF(tblDate[DATĂ],">"&EOMONTH(fDată,0),tblDate[COSTURI])) -> 0.00 lei | D8: =(SUMIF('Introducere date'!$B$6:$B$24,">="&DATE(fAn,MONTH(fDată),1),'Introducere date'!$E$6:$E$24)-SUMIF('Introducere date'!$B$6:$B$24,">"&EOMONTH(fDată,0),'Introducere date'!$E$6:$E$24))-(SUMIF('Introducere date'!$B$6:$B$24,">="&DATE(fAn,MONTH(fDată),1),'Introducere date'!$F$6:$F$24)-SUMIF('Introducere date'!$B$6:$B$24,">"&EOMONTH(fDată,0),'Introducere date'!$F$6:$F$24)) -> 0.00 lei | E8: =D8-C8 -> 0.00 lei | F8: =IFERROR(D8/C8,"-") -> - | G8: =SUMIF('Introducere date'!$B$6:$B$24,"<="&EOMONTH(fDată,0),'Introducere date'!$F$6:$F$24) -> 0.00 lei | H8: =SUMIF(tblDate[DATĂ],"<="&EOMONTH(fDată,0),tblDate[COSTURI]) -> 0.00 lei | I8: =H8-G8 -> 0.00 lei | J8: =IFERROR(H8/G8,"") -> 
B9: Margine | C9: =IFERROR(C8/C7,"-") -> - | D9: =IFERROR(D8/D7,"-") -> - | F9: =IFERROR(F8/F7,"-") -> - | G9: =IFERROR(G8/G7,"") ->  | H9: =IFERROR(H8/H7,"") ->  | J9: =IFERROR(J8/J7,"") -> 
B10: Numărul de comenzi | C10: =COUNTIF(tblDate[DATĂ],">="&DATE(fAn,MONTH(fDată),1))-COUNTIF(tblDate[DATĂ],">"&EOMONTH(fDată,0)) -> 0 | G10: =COUNTIF(tblDate[DATĂ],">"&EOMONTH(fDată,0)) -> 19
B11: Valoare medie comandă | C11: =IFERROR(C7/C10,"-") -> - | G11: =IFERROR(G7/G10,"-") -> 0.00 lei
B13: PROGNOZĂ | D13: LUNA URMĂTOARE | F13: TRIMESTRUL URMĂTOR | I13: ANUL VIITOR
B14: Vânzări | D14: =TREND(tblDate[[LUNĂ ]],tblDate[NUM LUNAR (ASCUNDERE)],IF(MONTH(fDată)=12,13,MONTH(fDată)+1)) -> 20,153.51 lei | F14: =TREND(tblDate[[TRIMESTRU ]],tblDate[NUM LUNAR (ASCUNDERE)],IF(MONTH(fDată)=12,13,MONTH(fDată)+1)) -> 44,115.91 lei | I14: =TREND(tblDate[[ANUAL ]],tblDate[[LUNĂ ]],IF(MONTH(fDată)=12,13,MONTH(fDată)+1)) -> 143,800.00 lei
B16: ISTORIC VÂNZĂRI
B30: PROGNOZĂ LUNARĂ | F30: PROGNOZĂ TRIMESTRU
B38: PROGNOZĂ ANUALĂ | F38: CURS VENITURI
